Cogmind - Beta 15 @@@ ROGUE MODE // 2025.07.25 @ 12:35:21 Player: AshCrow Result: Self-destructed Performance ------------- Evolutions (1) 500 Regions Visited (2) 400 Robots Destroyed (5) 25 Value Destroyed (86) 86 Prototype IDs (0) 0 Alien Tech Used (0) 0 Bonus (0) 0 TOTAL SCORE: 1011 Bonus ------- None Cogmind --------- Core Integrity 400/400 Matter 261/300 Energy 250/250 System Corruption 0% Temperature Cool (12) Movement Flying (280) Ox3 Location -9/Materials Parts ------- > --- POWER (1) -------- Ion Engine > --- PROPULSION (3) --- Flight Unit > --- UTILITY (3) ------ Small Storage Unit Sensor Array > --- WEAPON (2) ------- Medium Laser Light Assault Rifle > --- INVENTORY (8) ---- Light Ion Engine Aluminum Leg Aluminum Leg Power Shielding Power Shielding Peak State ------------ > --- POWER ------------ Ion Engine > --- PROPULSION ------- Wheel Wheel > --- UTILITY ---------- Small Storage Unit ECM Suite > --- WEAPON ----------- Medium Laser Assault Rifle > --- INVENTORY -------- Light Ion Engine Aluminum Leg Aluminum Leg Light Armor Plating [Rating: 7] Favorites ----------- Power Ion Engine Engine Ion Engine Propulsion Flight Unit Wheel Wheel Flight Unit Flight Unit Utility Small Storage Unit Device ECM Suite Storage Small Storage Unit Weapon Medium Laser Energy Gun Medium Laser Ballistic Gun Assault Rifle Build | -11 -10 -9 ------- Run | Yrd Mat Mat Slots Evolved 2 | . . 2 Power . | . . . Propulsion 1 | . . 1 Utility 1 | . . 1 Weapon . | . . . Parts Attached 12 | 7 4 1 Power 2 | 2 . . Engine 2 | 2 . . Core . | . . . Reactor . | . . . Propulsion 4 | 2 2 . Treads . | . . . Leg . | . . . Wheel 2 | 2 . . Hover . | . . . Flight 2 | . 2 . Utility 3 | 1 2 . Device 2 | . 2 . Storage 1 | 1 . . Processor . | . . . Hackware . | . . . Protection . | . . . Artifact . | . . . Weapon 3 | 2 . 1 Energy Gun 1 | 1 . . Energy Cannon . | . . . Ballistic Gun 2 | 1 . 1 Ballistic Cannon . | . . . Launcher . | . . . Special Weapon . | . . . Impact Weapon . | . . . Slashing Weapon . | . . . Piercing Weapon . | . . . Special Melee Weapon . | . . . Unidentified Prototypes . | . . . Parts Lost 1 | . . 1 Power . | . . . Propulsion 1 | . . 1 Utility . | . . . Weapon . | . . . Highest Loss Streak 1 | . . 1 To Critical Strikes . | . . . Average Backups 5 | 1 6 5 Power . | . 1 1 Propulsion 1 | 1 2 2 Utility 2 | . 2 2 Weapon . | . . . Tool/Special . | . . . Unused Backups 5 | . . 5 Power . | . . . Propulsion 2 | . . 2 Utility 3 | . . 3 Weapon . | . . . Tool/Special . | . . . Average Slot Usage (%) 95 | . 98 72 Engine 13 | . 14 11 Wheel 6 | . 7 . Flight 21 | . 21 22 Device 12 | . 12 11 Storage 13 | . 14 11 Energy Gun 13 | . 14 7 Ballistic Gun 13 | . 14 9 Peak Build Rating 7 | 6 7 7 Average Rating 6 | 4 6 6 On Entrance 4 | . 6 7 Naked Turns . | . . . Heaviest Build 16 | 14 16 14 Greatest Support 20 | 20 20 8 Greatest Overweight (x) 3 | 1 3 1 Average Overweight (x) . | . . 1 Largest Inventory Capacity 8 | 8 8 8 Average Capacity 7 | 6 8 8 Most Carried 8 | 3 7 8 Average Carried 6 | 1 6 5 Final Capacity 8 | 8 8 8 Final Carried 7 | 3 7 5 Class Distribution -------------------- 100% | Mutant Dominant Class ---------------- Mutant | -10/Materials Mutant | -9/Materials Resources | -11 -10 -9 ----------- Run | Yrd Mat Mat Matter Collected 333 | 180 153 . Remotely . | . . . Salvage Created 115 | . 115 . Parts 9 | . 9 . Haulers Intercepted . | . . . Recyclers Shooed . | . . . Parts Field Recycled . | . . . Retrieved Matter . | . . . Parts Self-Destructed . | . . . Prevented . | . . . Kills | -11 -10 -9 ------- Run | Yrd Mat Mat Combat Hostiles Destroyed 4 | . 4 . Guns 4 | . 4 . Classes Destroyed 3 | . 3 . Watcher 1 | . 1 . Swarmer 3 | . 3 . Subdweller 1 | . 1 . Best Kill Streak 3 | . 3 . Combat Bots Only 3 | . 3 . Max Kills in Single Turn 1 | . 1 . Gunslinging . | . . . Exploded . | . . . Melee . | . . . Uniques/NPCs Destroyed . | . . . Combat | -11 -10 -9 -------- Run | Yrd Mat Mat Hostile Shots Fired 37 | . 19 18 Missed 13 | . 5 8 Hits 24 | . 14 10 Projectile 24 | . 14 10 Damage Taken 269 | . 156 113 Core 16 | . 16 . Absorbed by Shields . | . . . Core Remaining (%) 96 | 100 93 . Volleys Fired 14 | . 14 . Largest 2 | . 2 . Hottest 70 | . 70 . Shots Fired 29 | . 29 . Gun 29 | . 29 . Cannon . | . . . Launcher . | . . . Special . | . . . Kinetic 14 | . 14 . Thermal 15 | . 15 . Explosive . | . . . Electromagnetic . | . . . Robot Hit Streak 4 | . 4 . Robot Miss Streak 4 | . 4 . Penetration Max . | . . . Secondary Targets . | . . . Shots Hit Robots 13 | . 13 . Core Hits 6 | . 6 . Critical Kills . | . . . Critical Parts Destroyed . | . . . Critical Strikes . | . . . Melee Attacks . | . . . Impact . | . . . Slashing . | . . . Piercing . | . . . Sneak Attacks . | . . . Combat Hostiles . | . . . Follow-up Attacks . | . . . Damage Inflicted 177 | . 177 . Guns 177 | . 177 . Cannons . | . . . Explosions . | . . . Melee . | . . . Ramming . | . . . Kinetic 67 | . 67 . Thermal 110 | . 110 . Explosive . | . . . Electromagnetic . | . . . Impact . | . . . Slashing . | . . . Piercing . | . . . Highest Corruption 4 | . 4 . Average Corruption 2 | . 2 . Corruption Purged . | . . . Corruption Blocked . | . . . Effects 2 | . 2 . Matter Fused 1 | . 1 . Misfires 1 | . 1 . Overload Shots . | . . . Overflow Damage . | . . . Projectiles . | . . . Explosions . | . . . Melee . | . . . Knockbacks . | . . . Impact . | . . . Kinetic . | . . . Secondary . | . . . Self-Inflicted Damage . | . . . Shots . | . . . Rammed . | . . . Targets Rammed . | . . . Kicked . | . . . Crushed . | . . . Highest Temperature 63 | . 63 . Average Temperature 17 | . 17 . Received Heat Transfer 66 | . 18 48 Siege Activations . | . . . Martial Activations . | . . . Shielding Activations . | . . . Robots Disrupted . | . . . Combat Hostiles . | . . . Robots Corrupted . | . . . Combat Hostiles . | . . . Parts Fried . | . . . Impact Corruptions . | . . . Robots Melted . | . . . Combat Hostiles . | . . . Parts Melted 2 | . 2 . Heat Transferred 333 | . 333 . Parts Sabotaged . | . . . Parts Stolen . | . . . Parts Stripped . | . . . Power Chain Reactions . | . . . Alert | -11 -10 -9 ------- Run | Yrd Mat Mat Maximum Alert Level . | . . . Low Security (%) 100 | 100 100 100 Level 1 . | . . . Level 2 . | . . . Level 3 . | . . . Level 4 . | . . . Level 5 . | . . . High Security . | . . . Max Security . | . . . Peak Influence 61 | . 61 . Initial . | . . . Average 4 | . 5 . Influence Increases 97 | . 97 . Destroy 0b10 Robot/C 60 | . 60 . Destroy 0b10 Robot/NC 5 | . 5 . Destroy Leader 12 | . 12 . Successful Hack 4 | . 4 . Destroy Structure 1 | . 1 . Partial Spotted 15 | . 15 . Influence Decreases 97 | . 97 . Time Decay 97 | . 97 . Squads Dispatched 1 | . 1 . Investigation 1 | . 1 . Extermination . | . . . Reinforcement . | . . . Assault . | . . . Garrison . | . . . Intercept . | . . . Searches Triggered . | . . . Construction Impeded . | . . . Haulers Reinforced . | . . . Active Scanning Responses . | . . . Cargo Convoy Interrupts . | . . . Stealth | -11 -10 -9 --------- Run | Yrd Mat Mat Distress Signals 1 | . . 1 Communications Jammed . | . . . Distress Signals . | . . . Times Spotted 17 | . 9 8 Peak Tracking Total 8 | . 2 8 Tactical Retreats 1 | . 1 . Traps | -11 -10 -9 ------- Run | Yrd Mat Mat Traps Triggered 3 | . 3 . Indirectly . | . . . Trap Hack Attempts . | . . . Triggered . | . . . Disarmed . | . . . Reprogrammed . | . . . Reused . | . . . Traps Extracted . | . . . Installed . | . . . Triggered . | . . . Machines | -11 -10 -9 ---------- Run | Yrd Mat Mat Machines Disabled . | . . . Max in Single Turn . | . . . Machines Repaired . | . . . Machines Dismantled . | . . . Machines Sabotaged . | . . . Overloaded Fab Kills . | . . . Hacking | -11 -10 -9 --------- Run | Yrd Mat Mat Machines Accessed 2 | . 2 . Terminals 2 | . 2 . Fabricators . | . . . Repair Stations . | . . . Recycling Units . | . . . Scanalyzers . | . . . Garrison Access . | . . . Total Hacks 8 | . 8 . Successful 2 | . 2 . Failed 6 | . 6 . Catastrophic . | . . . Database Lockouts . | . . . Manual . | . . . Terminals 8 | . 8 . Fabricators . | . . . Repair Stations . | . . . Recycling Units . | . . . Scanalyzers . | . . . Garrison Access . | . . . Terminal Hacks 2 | . 2 . Record 1 | . 1 . Emergency Access Points 1 | . 1 . Fabricator Hacks . | . . . Repair Station Hacks . | . . . Recycling Unit Hacks . | . . . Scanalyzer . | . . . Garrison Access Hacks . | . . . Unauthorized Hacks . | . . . Terminals . | . . . Fabricators . | . . . Repair Stations . | . . . Recycling Units . | . . . Scanalyzers . | . . . Garrison Access . | . . . Data Cores Recovered . | . . . Used . | . . . Hacking Detections 2 | . 2 . Full Trace Events 1 | . 1 . Feedback Events . | . . . Feedback Blocked . | . . . Robot Schematics Acquired . | . . . Robots Built . | . . . Authchips . | . . . Time . | . . . Total Robot Build Rating . | . . . Part Schematics Acquired . | . . . Parts Built . | . . . Authchips . | . . . Time . | . . . Total Part Build Rating . | . . . Parts Repaired . | . . . Time . | . . . Parts Recycled . | . . . Recycled Matter . | . . . Retrieved Matter . | . . . Retrieved Components . | . . . Parts Scanalyzed . | . . . Part Schematics Acquired . | . . . Parts Damaged . | . . . Bothacking | -11 -10 -9 ------------ Run | Yrd Mat Mat Used RIF Installer . | . . . Robots Hacked . | . . . Non-combat . | . . . Combat . | . . . Robot Hacks Applied . | . . . Relay Couplers Released . | . . . Fabnet Peak Effective % . | . . . Robots Rewired . | . . . Allies Hacked . | . . . Hacks Repelled . | . . . Allies | -11 -10 -9 -------- Run | Yrd Mat Mat Total Allies . | . . . Largest Group . | . . . Highest-Rated Group . | . . . Highest-Rated Ally . | . . . Total Orders . | . . . Ally Attacks . | . . . Total Damage . | . . . Kills . | . . . Allies Corrupted . | . . . Allies Melted . | . . . Intel | -11 -10 -9 ------- Run | Yrd Mat Mat Active Infowar (turns) 734 | . 680 54 Sensors 79 | . 25 54 ECM 655 | . 655 . Robot Analysis Total . | . . . Derelict Logs Recovered . | . . . Drone Launches . | . . . Drone Recoveries . | . . . Exploration | -11 -10 -9 ------------- Run | Yrd Mat Mat Turns Passed 881 | 56 771 54 Spaces Moved 455 | 54 358 43 Core 11 | 11 . . Treads . | . . . Legs . | . . . Wheels 217 | 43 174 . Hover . | . . . Flight 227 | . 184 43 Fastest Speed 50 | 50 80 117 Average Speed 99 | 79 99 117 Slowest Speed 285 | 100 285 117 Overloaded Moves . | . . . Propulsion Burnouts . | . . . Robots Hopped . | . . . Potential Cave-ins . | . . . Cave-ins Triggered . | . . . Exploration Rate (%) 21 | 4 50 11 Regions Visited 2 Branch Regions . Pre-discovered Areas . | . . . Known Exits Taken . | . . . Unknown Exits Taken 2 | 1 1 . Scrap Searched . | . . . Spaces Dug . | . . . Terrain Destroyed . | . . . Melee . | . . . Projectile . | . . . AOE . | . . . Terrain Rammed . | . . . Walls Destroyed . | . . . Machines Disabled . | . . . Actions | -11 -10 -9 --------- Run | Yrd Mat Mat Total 853 | 64 741 48 Wait 362 | . 362 . Move 453 | 53 357 43 Hop . | . . . Pick Up 7 | 3 4 . Fast Attach 7 | 6 1 . Attach 3 | 1 . 2 Detach 2 | 1 . 1 Swap 3 | . 3 . Drop 2 | . . 2 Fire 14 | . 14 . Melee . | . . . Ram . | . . . Kick . | . . . Crush . | . . . Escape Stasis . | . . . Rewire . | . . . Trap . | . . . Miscellaneous . | . . . Route ------- -11/Scrapyard -10/Materials (discovered 2 exits: [*Mat x2]) -9/Materials History --------- Turn | Location | Event 21 | -11/Scrapyard | Discovered new exit (range 15) 57 | -11/Scrapyard | Entered Materials 130 | -10/Materials | Discovered new exit (range 15) 303 | -10/Materials | Build established: Mutant 557 | -10/Materials | Derelicts attacked the area 742 | -10/Materials | Discovered new exit (range 14) 828 | -10/Materials | Entered another Materials area 828 | -9/Materials | Evolved 2 slots: Propulsion x1, Utility x1 882 | -9/Materials | Self-destructed Last Messages --------------- System corrupted (+1). Triggered Shock Trap. The floor emits a surge of raw power. System corrupted (+2). Triggered Shock Trap. The floor emits a surge of raw power. System corrupted (+1). System corrupted: FCS attempts to trigger Med. Laser. System corrupted: Med. Laser misfires. Acquired Sensor Array. System corrupted: Matter fused (-5). U-05 Engineer builds a Door. PARAMETERS=PROPULSION+1,UTILITY+1 LOCATION=UNKNOWN GOAL=ESCAPE Dropped Assault Rifle. Dropped Lgt. Armor Plating. T-07 Excavator is excavating. Flight Unit destroyed. Map ----- +----------------------------------------------------+ | ???????????????????????????????????????? | | ???????????????????????????????????????? | | ???????????????????????????????????????? | | ???????????????????????????????????????? | | ???????????????????????????????????????? | | ???????????????????????????????????????? | | ???????????????????????????????????????? | | ???????????????????????????????????????? | | ???????????????????????????????????????? | | ???????????????????????????????????????? | | ????????????? ?????????????????????? | | ????????????? ????????????????????? | | ????????????? "????????????????????? | | ????????????? ""???????????????????? | | ????????????? ""????"" ????????????? | | ?????????????# ???? ????????????? | | ?????????????# ?? w s???????????? | | ?????????????# """ s ???????????? | | ?????????????+ """ s ??????????? | | ?????????????# """ ??????????? | | ?????????????# a ??????????? | | ?????????????# ! s/ #?????????? | | ?????????????# / #??????????? | | ?????????????# [ ??????????????? | | ?????????????# ??????????????????? | | ?????????????# @ #?????????????????????? | | ?????????????# g#?????????????????????? | | ?????????????# g#?????????????????????? | | ?????????????# #?????????????????????? | | ??????######## #?????????????????????? | | ??????# # #?????????????????????? | | ??????#[ # #?????????????????????? | | ??????# + #?????????????????????? | | ??????# # #?????????????????????? | | ??????# # #????????# #??????????? | | ??????# # ####### #?????????? | | ??????######## #?????????? | | ?????????????# ?????????? | | ?????????????# #?????????? | | ?????????????# ####### #?????????? | | ?????????????# #????????###??????????? | | ?????????????# #?????????????????????? | | ?????????????# #?????????????????????? | | ?????????????# ########??????????????? | | ?????????????# # #??????????????? | | ?????????????# # """ #??????????????? | | ?????????????# + "R" #??????????????? | | ?????????????# # " " #??????????????? | | ?????????????# # #??????????????? | | ?????????????# # #??????????????? | +----------------------------------------------------+ Best States ------------- Heat Dissipation 28 Energy Generation 10 Energy Capacity 250 Matter Stores 300 Matter Capacity 300 Sight Range 16 Robot Scan Range 14 Terrain Scan Density 10 ECM Strength 1 Evasion (%) 44 Item Schematics ----------------- None Robot Schematics ------------------ None Fabricated ------------ Nothing Repaired ---------- Nothing Alien Tech Used ----------------- None Achievements -------------- None Challenges ------------ None Game ------ Seed CentriumNuclearFragment Manual? 0 Play Time 00:06:51 Cumulative 32.2 hours Start 2025.07.25 @ 12:29:27 End 2025.07.25 @ 12:35:21 Sessions 1 Manual Loads 0 Difficulty Rogue Special Mode None Game No. 56 Rogue 56 Adventurer 0 Explorer 0 Win Type - Total 0 Types 0/0/0/0/0/0/0/0/0/0 Lore% 29 Gallery% 26 Achievement% 27 Wizard Run 0 Options --------- Layout 1 ASCII 0 Keyboard 1 Movement Numpad Keybinds 0 Fullscreen 1 Font 24/Smallcaps Map View 50x40 Zoom Use 0% Tactical HUD 0 Map Filters NONE Filters NONE Steam 1 RUN: e37ee020-7f38-4f52-a27b-1c943a9e5766